[Event "Titled Tuesday Blitz November 15 Late 2022"]
[White "Huber, Benedikt"]
[Black "Korchmar, Vasiliy"]
[WhiteFideId "12923583"]
[BlackFideId "24131750"]
[WhiteElo "2199"]
[BlackElo "2370"]
[Result "0-1"]
[Round "01"]
[TimeControl "180+1"]
[Date "2022.11.16"]
[WhiteClock "0:00:42"]
[BlackClock "0:00:35"]

1. d4 {[%clk 0:02:57]}  d5 {[%clk 0:03:00]} 2. Nc3 {[%clk 0:02:57]}  Nf6 {[%clk 0:02:59]} 3. Bf4 {[%clk 0:02:57]}  a6 {[%clk 0:03:00]} 4. e3 {[%clk 0:02:57]}  b5 {[%clk 0:03:00]} 5. h4 {[%clk 0:02:55]}  e6 {[%clk 0:02:57]} 6. g4 {[%clk 0:02:55]}  Bb4 {[%clk 0:02:57]} 7. Bd3 {[%clk 0:02:50]}  Bb7 {[%clk 0:02:52]} 8. g5 {[%clk 0:02:48]}  Ne4 {[%clk 0:02:51]} 9. Ne2 {[%clk 0:02:46]}  Nd7 {[%clk 0:02:45]} 10. a3 {[%clk 0:02:44]}  Bd6 {[%clk 0:02:39]} 11. Bxe4 {[%clk 0:02:35]}  dxe4 {[%clk 0:02:39]} 12. Qd2 {[%clk 0:02:26]}  O-O {[%clk 0:02:33]} 13. h5 {[%clk 0:02:23]}  Nb6 {[%clk 0:02:29]} 14. b3 {[%clk 0:02:18]}  Qe7 {[%clk 0:02:23]} 15. a4 {[%clk 0:02:00]}  b4 {[%clk 0:02:18]} 16. Nd1 {[%clk 0:01:57]}  Bxf4 {[%clk 0:02:08]} 17. Nxf4 {[%clk 0:01:57]}  e5 {[%clk 0:02:08]} 18. dxe5 {[%clk 0:01:54]}  Qxe5 {[%clk 0:02:09]} 19. Qd4 {[%clk 0:01:54]}  Qxd4 {[%clk 0:02:02]} 20. exd4 {[%clk 0:01:55]}  Rad8 {[%clk 0:01:50]} 21. Ne3 {[%clk 0:01:52]}  Rxd4 {[%clk 0:01:48]} 22. a5 {[%clk 0:01:53]}  Nc8 {[%clk 0:01:30]} 23. g6 {[%clk 0:01:44]}  Rd7 {[%clk 0:01:01]} 24. gxh7+ {[%clk 0:01:25]}  Kxh7 {[%clk 0:01:00]} 25. Ke2 {[%clk 0:01:26]}  Nd6 {[%clk 0:00:57]} 26. Rag1 {[%clk 0:01:24]}  Nb5 {[%clk 0:00:54]} 27. Nf5 {[%clk 0:01:16]}  Nd4+ {[%clk 0:00:46]} 28. Nxd4 {[%clk 0:01:12]}  Rxd4 {[%clk 0:00:47]} 29. Rg5 {[%clk 0:01:03]}  e3 {[%clk 0:00:42]} 30. Rhg1 {[%clk 0:01:03]}  Rxf4 {[%clk 0:00:41]} 31. Rxg7+ {[%clk 0:01:03]}  Kh6 {[%clk 0:00:41]} 32. fxe3 {[%clk 0:00:59]}  Rf5 {[%clk 0:00:36]} 33. R7g3 {[%clk 0:00:42]}  Be4 {[%clk 0:00:35]} 0-1


[Site "https://www.chess.com"]

[Event "Titled Tuesday Blitz November 15 Late 2022"]
[White "Iliaguev, Nisim"]
[Black "Liu, Kelsey"]
[WhiteFideId "2817276"]
[BlackFideId "30944481"]
[WhiteElo "2244"]
[BlackElo "2335"]
[Result "1-0"]
[Round "01"]
[TimeControl "180+1"]
[Date "2022.11.16"]
[WhiteClock "0:01:30"]
[BlackClock "0:00:04"]

1. d4 {[%clk 0:03:00]}  Nf6 {[%clk 0:02:59]} 2. g3 {[%clk 0:02:58]}  d5 {[%clk 0:02:55]} 3. Bg2 {[%clk 0:02:58]}  e6 {[%clk 0:02:55]} 4. Nf3 {[%clk 0:02:58]}  c5 {[%clk 0:02:55]} 5. O-O {[%clk 0:02:58]}  Be7 {[%clk 0:02:48]} 6. c4 {[%clk 0:02:58]}  O-O {[%clk 0:02:42]} 7. cxd5 {[%clk 0:02:58]}  exd5 {[%clk 0:02:42]} 8. Nc3 {[%clk 0:02:59]}  Nc6 {[%clk 0:02:38]} 9. b3 {[%clk 0:02:54]}  Ne4 {[%clk 0:02:31]} 10. Bb2 {[%clk 0:02:47]}  Bf6 {[%clk 0:02:29]} 11. e3 {[%clk 0:02:42]}  Re8 {[%clk 0:02:17]} 12. Nxe4 {[%clk 0:02:37]}  dxe4 {[%clk 0:02:16]} 13. Nd2 {[%clk 0:02:38]}  Bf5 {[%clk 0:02:14]} 14. g4 {[%clk 0:02:13]}  Bg6 {[%clk 0:02:14]} 15. g5 {[%clk 0:02:12]}  Bxg5 {[%clk 0:02:10]} 16. dxc5 {[%clk 0:02:13]}  Qd7 {[%clk 0:01:52]} 17. Nc4 {[%clk 0:02:09]}  Rad8 {[%clk 0:01:46]} 18. Qxd7 {[%clk 0:02:08]}  Rxd7 {[%clk 0:01:47]} 19. Nd6 {[%clk 0:02:09]}  Ree7 {[%clk 0:01:36]} 20. a3 {[%clk 0:02:09]}  a5 {[%clk 0:01:22]} 21. Rad1 {[%clk 0:02:05]}  Ne5 {[%clk 0:01:08]} 22. Bxe5 {[%clk 0:01:44]}  Rxe5 {[%clk 0:01:08]} 23. b4 {[%clk 0:01:45]}  Be7 {[%clk 0:00:53]} 24. Nc4 {[%clk 0:01:37]}  Red5 {[%clk 0:00:44]} 25. Rxd5 {[%clk 0:01:35]}  Rxd5 {[%clk 0:00:45]} 26. Nxa5 {[%clk 0:01:36]}  Rd7 {[%clk 0:00:40]} 27. Rc1 {[%clk 0:01:32]}  f5 {[%clk 0:00:38]} 28. Bf1 {[%clk 0:01:31]}  Bf7 {[%clk 0:00:37]} 29. c6 {[%clk 0:01:30]}  bxc6 {[%clk 0:00:36]} 30. Nxc6 {[%clk 0:01:31]}  Bf6 {[%clk 0:00:35]} 31. Bc4 {[%clk 0:01:29]}  Bxc4 {[%clk 0:00:33]} 32. Rxc4 {[%clk 0:01:30]}  Rd1+ {[%clk 0:00:26]} 33. Kg2 {[%clk 0:01:30]}  Ra1 {[%clk 0:00:27]} 34. b5 {[%clk 0:01:29]}  Rxa3 {[%clk 0:00:26]} 35. b6 {[%clk 0:01:30]}  Rb3 {[%clk 0:00:21]} 36. Rb4 {[%clk 0:01:30]}  Rxb4 {[%clk 0:00:21]} 37. Nxb4 {[%clk 0:01:31]}  Kf7 {[%clk 0:00:14]} 38. b7 {[%clk 0:01:31]}  Be5 {[%clk 0:00:14]} 39. Nc6 {[%clk 0:01:31]}  Bc7 {[%clk 0:00:15]} 40. b8=Q {[%clk 0:01:32]}  Bxb8 {[%clk 0:00:15]} 41. Nxb8 {[%clk 0:01:33]}  Ke6 {[%clk 0:00:15]} 42. Nc6 {[%clk 0:01:33]}  g5 {[%clk 0:00:10]} 43. Nd4+ {[%clk 0:01:31]}  Ke5 {[%clk 0:00:10]} 44. Nc6+ {[%clk 0:01:31]}  Kd6 {[%clk 0:00:07]} 45. Nd4 {[%clk 0:01:30]}  Ke5 {[%clk 0:00:07]} 46. Kg3 {[%clk 0:01:30]}  f4+ {[%clk 0:00:07]} 47. Kg4 {[%clk 0:01:30]}  fxe3 {[%clk 0:00:04]} 48. fxe3 {[%clk 0:01:31]}  h6 {[%clk 0:00:05]} 49. Kh5 {[%clk 0:01:31]}  Kf6 {[%clk 0:00:04]} 50. Kxh6 {[%clk 0:01:30]} 1-0


[Site "https://www.chess.com"]

[Event "Titled Tuesday Blitz November 15 Late 2022"]
[White "Issani, Nameer"]
[Black "Brown, Andrew"]
[WhiteFideId "2619130"]
[BlackFideId "3206513"]
[WhiteElo "2634"]
[BlackElo "2245"]
[Result "0-1"]
[Round "01"]
[TimeControl "180+1"]
[Date "2022.11.16"]
[WhiteClock "0:00:35"]
[BlackClock "0:00:30"]

1. d4 {[%clk 0:02:51]}  g6 {[%clk 0:03:00]} 2. c4 {[%clk 0:02:51]}  Bg7 {[%clk 0:02:59]} 3. Nc3 {[%clk 0:02:51]}  d6 {[%clk 0:02:58]} 4. e4 {[%clk 0:02:51]}  Nd7 {[%clk 0:02:59]} 5. Be3 {[%clk 0:02:50]}  e5 {[%clk 0:02:57]} 6. f3 {[%clk 0:02:48]}  Ne7 {[%clk 0:02:56]} 7. d5 {[%clk 0:02:46]}  f5 {[%clk 0:02:56]} 8. Nge2 {[%clk 0:02:47]}  f4 {[%clk 0:02:44]} 9. Bf2 {[%clk 0:02:47]}  g5 {[%clk 0:02:44]} 10. Rb1 {[%clk 0:02:35]}  a5 {[%clk 0:02:43]} 11. a3 {[%clk 0:02:33]}  h5 {[%clk 0:02:41]} 12. h3 {[%clk 0:02:30]}  O-O {[%clk 0:02:36]} 13. b4 {[%clk 0:02:28]}  axb4 {[%clk 0:02:36]} 14. axb4 {[%clk 0:02:29]}  Ng6 {[%clk 0:02:21]} 15. c5 {[%clk 0:02:24]}  Nf6 {[%clk 0:02:08]} 16. Nc1 {[%clk 0:02:11]}  g4 {[%clk 0:01:57]} 17. hxg4 {[%clk 0:02:09]}  hxg4 {[%clk 0:01:57]} 18. Nb3 {[%clk 0:02:03]}  g3 {[%clk 0:01:36]} 19. Bg1 {[%clk 0:02:01]}  b6 {[%clk 0:01:32]} 20. cxd6 {[%clk 0:01:56]}  cxd6 {[%clk 0:01:32]} 21. Bb5 {[%clk 0:01:57]}  Kf7 {[%clk 0:01:12]} 22. Bc6 {[%clk 0:01:57]}  Rb8 {[%clk 0:01:11]} 23. Nb5 {[%clk 0:01:52]}  Ba6 {[%clk 0:01:05]} 24. Na3 {[%clk 0:01:41]}  Rh8 {[%clk 0:01:03]} 25. Rxh8 {[%clk 0:01:40]}  Qxh8 {[%clk 0:01:04]} 26. b5 {[%clk 0:01:36]}  Qh1 {[%clk 0:01:01]} 27. Kf1 {[%clk 0:01:36]}  Nh4 {[%clk 0:00:56]} 28. Qd2 {[%clk 0:01:16]}  Bc8 {[%clk 0:00:53]} 29. Nc4 {[%clk 0:01:13]}  Bf8 {[%clk 0:00:50]} 30. Rb2 {[%clk 0:00:59]}  Nxg2 {[%clk 0:00:43]} 31. Qb4 {[%clk 0:00:42]}  Bh3 {[%clk 0:00:41]} 32. Nxd6+ {[%clk 0:00:39]}  Bxd6 {[%clk 0:00:41]} 33. Qxd6 {[%clk 0:00:39]}  Nh4+ {[%clk 0:00:32]} 34. Ke2 {[%clk 0:00:39]}  Qxf3+ {[%clk 0:00:30]} 35. Ke1 {[%clk 0:00:35]}  Qf1+ {[%clk 0:00:31]} 36. Kd2 {[%clk 0:00:35]}  Nxe4+ {[%clk 0:00:31]} 37. Kc2 {[%clk 0:00:35]}  Nxd6 {[%clk 0:00:31]} 38. Rb1 {[%clk 0:00:35]}  Bf5+ {[%clk 0:00:30]} 0-1


[Site "https://www.chess.com"]

[Event "Titled Tuesday Blitz November 15 Late 2022"]
[White "Ivic, Velimir"]
[Black "Thorhallsson, Simon"]
[WhiteFideId "950122"]
[BlackFideId "2310090"]
[WhiteElo "2625"]
[BlackElo "2109"]
[Result "1-0"]
[Round "01"]
[TimeControl "180+1"]
[Date "2022.11.16"]
[WhiteClock "0:00:18"]
[BlackClock "0:00:02"]

1. d4 {[%clk 0:02:59]}  Nf6 {[%clk 0:02:59]} 2. c4 {[%clk 0:03:00]}  e5 {[%clk 0:02:59]} 3. dxe5 {[%clk 0:02:59]}  Ng4 {[%clk 0:02:59]} 4. Nf3 {[%clk 0:02:59]}  Bc5 {[%clk 0:02:59]} 5. e3 {[%clk 0:02:58]}  Nc6 {[%clk 0:02:59]} 6. Nc3 {[%clk 0:02:55]}  O-O {[%clk 0:02:59]} 7. Be2 {[%clk 0:02:54]}  Re8 {[%clk 0:03:00]} 8. O-O {[%clk 0:02:54]}  Ncxe5 {[%clk 0:03:00]} 9. Nxe5 {[%clk 0:02:54]}  Nxe5 {[%clk 0:03:01]} 10. b3 {[%clk 0:02:35]}  a5 {[%clk 0:03:01]} 11. Bb2 {[%clk 0:02:36]}  Ra6 {[%clk 0:03:01]} 12. Nd5 {[%clk 0:02:36]}  Rh6 {[%clk 0:02:58]} 13. Nf4 {[%clk 0:02:24]}  d6 {[%clk 0:02:43]} 14. Bd4 {[%clk 0:02:13]}  Bxd4 {[%clk 0:02:34]} 15. Qxd4 {[%clk 0:01:59]}  b6 {[%clk 0:02:13]} 16. Nd5 {[%clk 0:01:47]}  Ree6 {[%clk 0:02:01]} 17. g3 {[%clk 0:01:16]}  Bb7 {[%clk 0:01:41]} 18. f4 {[%clk 0:01:11]}  Nc6 {[%clk 0:01:36]} 19. Qd2 {[%clk 0:01:11]}  Ne7 {[%clk 0:01:33]} 20. Bf3 {[%clk 0:01:01]}  c6 {[%clk 0:01:03]} 21. Nc3 {[%clk 0:00:52]}  d5 {[%clk 0:01:03]} 22. cxd5 {[%clk 0:00:48]}  cxd5 {[%clk 0:01:00]} 23. Rfd1 {[%clk 0:00:39]}  Rd6 {[%clk 0:01:00]} 24. Nb5 {[%clk 0:00:34]}  Rd7 {[%clk 0:00:55]} 25. Nd4 {[%clk 0:00:33]}  Nc6 {[%clk 0:00:50]} 26. Rac1 {[%clk 0:00:29]}  Nxd4 {[%clk 0:00:40]} 27. Qxd4 {[%clk 0:00:30]}  Re6 {[%clk 0:00:40]} 28. Rc3 {[%clk 0:00:30]}  Rdd6 {[%clk 0:00:35]} 29. a3 {[%clk 0:00:29]}  h6 {[%clk 0:00:31]} 30. h4 {[%clk 0:00:28]}  Qe7 {[%clk 0:00:20]} 31. Kf2 {[%clk 0:00:29]}  Rd7 {[%clk 0:00:20]} 32. b4 {[%clk 0:00:27]}  axb4 {[%clk 0:00:20]} 33. axb4 {[%clk 0:00:28]}  Rc6 {[%clk 0:00:19]} 34. Rdc1 {[%clk 0:00:27]}  Rxc3 {[%clk 0:00:18]} 35. Rxc3 {[%clk 0:00:27]}  Rc7 {[%clk 0:00:19]} 36. h5 {[%clk 0:00:20]}  Qd7 {[%clk 0:00:11]} 37. Bg4 {[%clk 0:00:19]}  Qd8 {[%clk 0:00:06]} 38. Bf5 {[%clk 0:00:18]}  Rxc3 {[%clk 0:00:05]} 39. Qxc3 {[%clk 0:00:19]}  Qe8 {[%clk 0:00:03]} 40. Qc7 {[%clk 0:00:19]}  Ba8 {[%clk 0:00:02]} 41. Qxb6 {[%clk 0:00:18]}  Qd8 {[%clk 0:00:02]} 42. Qxd8# {[%clk 0:00:18]} 1-0


[Site "https://www.chess.com"]

[Event "Titled Tuesday Blitz November 15 Late 2022"]
[White "Jaracz, Pawel"]
[Black "Li, Xueyi"]
[WhiteFideId "1102222"]
[BlackFideId "8605912"]
[WhiteElo "2459"]
[BlackElo "2197"]
[Result "1-0"]
[Round "01"]
[TimeControl "180+1"]
[Date "2022.11.16"]
[WhiteClock "0:01:00"]
[BlackClock "0:00:20"]

1. e4 {[%clk 0:03:00]}  c6 {[%clk 0:02:59]} 2. c4 {[%clk 0:02:58]}  d5 {[%clk 0:02:59]} 3. exd5 {[%clk 0:02:58]}  cxd5 {[%clk 0:02:59]} 4. cxd5 {[%clk 0:02:58]}  Nf6 {[%clk 0:02:59]} 5. Nc3 {[%clk 0:02:59]}  Nxd5 {[%clk 0:02:58]} 6. Nf3 {[%clk 0:02:58]}  g6 {[%clk 0:02:49]} 7. Bb5+ {[%clk 0:02:40]}  Nc6 {[%clk 0:02:48]} 8. Ne5 {[%clk 0:02:29]}  Qd6 {[%clk 0:02:44]} 9. d4 {[%clk 0:02:28]}  Bg7 {[%clk 0:02:36]} 10. O-O {[%clk 0:02:24]}  O-O {[%clk 0:02:34]} 11. Bxc6 {[%clk 0:02:24]}  bxc6 {[%clk 0:02:34]} 12. Ne4 {[%clk 0:02:25]}  Qc7 {[%clk 0:02:23]} 13. Re1 {[%clk 0:02:14]}  Bxe5 {[%clk 0:01:56]} 14. dxe5 {[%clk 0:02:13]}  Qxe5 {[%clk 0:01:57]} 15. Bh6 {[%clk 0:02:06]}  Re8 {[%clk 0:01:50]} 16. Qa4 {[%clk 0:01:59]}  Bd7 {[%clk 0:01:37]} 17. Nc5 {[%clk 0:01:58]}  Qd6 {[%clk 0:01:33]} 18. Rac1 {[%clk 0:01:56]}  e5 {[%clk 0:01:13]} 19. Qa5 {[%clk 0:01:46]}  f5 {[%clk 0:01:03]} 20. b3 {[%clk 0:01:46]}  Re7 {[%clk 0:00:54]} 21. Bg5 {[%clk 0:01:45]}  Ree8 {[%clk 0:00:53]} 22. Qa6 {[%clk 0:01:42]}  Bc8 {[%clk 0:00:50]} 23. Qc4 {[%clk 0:01:38]}  Kg7 {[%clk 0:00:48]} 24. Rcd1 {[%clk 0:01:37]}  h6 {[%clk 0:00:44]} 25. Bc1 {[%clk 0:01:37]}  Kh7 {[%clk 0:00:38]} 26. Bb2 {[%clk 0:01:36]}  e4 {[%clk 0:00:38]} 27. Qd4 {[%clk 0:01:34]}  Qc7 {[%clk 0:00:36]} 28. f3 {[%clk 0:01:32]}  e3 {[%clk 0:00:31]} 29. f4 {[%clk 0:01:19]}  Bb7 {[%clk 0:00:26]} 30. g3 {[%clk 0:01:12]}  Rad8 {[%clk 0:00:26]} 31. Rd3 {[%clk 0:01:03]}  e2 {[%clk 0:00:21]} 32. Rd2 {[%clk 0:01:02]}  Qb6 {[%clk 0:00:20]} 33. Qg7# {[%clk 0:01:00]} 1-0


[Site "https://www.chess.com"]

[Event "Titled Tuesday Blitz November 15 Late 2022"]
[White "Karas, Marek"]
[Black "Ter-Sahakyan, Samvel"]
[WhiteFideId "14928558"]
[BlackFideId "13302531"]
[WhiteElo "2220"]
[BlackElo "2584"]
[Result "0-1"]
[Round "01"]
[TimeControl "180+1"]
[Date "2022.11.16"]
[WhiteClock "0:00:01"]
[BlackClock "0:00:33"]

1. d4 {[%clk 0:02:59]}  Nf6 {[%clk 0:02:59]} 2. Nf3 {[%clk 0:02:59]}  d5 {[%clk 0:02:58]} 3. c4 {[%clk 0:02:59]}  e6 {[%clk 0:02:58]} 4. Nc3 {[%clk 0:02:59]}  Bb4 {[%clk 0:02:57]} 5. Qa4+ {[%clk 0:02:56]}  Nc6 {[%clk 0:02:56]} 6. e3 {[%clk 0:02:54]}  O-O {[%clk 0:02:56]} 7. Bd2 {[%clk 0:02:54]}  dxc4 {[%clk 0:02:51]} 8. Bxc4 {[%clk 0:02:53]}  Bd6 {[%clk 0:02:51]} 9. Nb5 {[%clk 0:02:49]}  Be7 {[%clk 0:02:43]} 10. Nc3 {[%clk 0:02:40]}  a6 {[%clk 0:02:41]} 11. Be2 {[%clk 0:02:28]}  Bd6 {[%clk 0:02:39]} 12. Rd1 {[%clk 0:02:26]}  Bd7 {[%clk 0:02:36]} 13. O-O {[%clk 0:02:22]}  Qe7 {[%clk 0:02:21]} 14. Qc2 {[%clk 0:02:16]}  h6 {[%clk 0:02:20]} 15. e4 {[%clk 0:02:10]}  e5 {[%clk 0:02:18]} 16. d5 {[%clk 0:01:53]}  Nd4 {[%clk 0:02:18]} 17. Qd3 {[%clk 0:01:51]}  c5 {[%clk 0:02:06]} 18. dxc6 {[%clk 0:01:37]}  Nxe2+ {[%clk 0:02:05]} 19. Qxe2 {[%clk 0:01:31]}  Bxc6 {[%clk 0:02:05]} 20. Rfe1 {[%clk 0:01:22]}  Rfe8 {[%clk 0:01:52]} 21. Nh4 {[%clk 0:01:17]}  Qe6 {[%clk 0:01:52]} 22. Nf5 {[%clk 0:01:11]}  Bf8 {[%clk 0:01:52]} 23. Ng3 {[%clk 0:01:07]}  Rad8 {[%clk 0:01:51]} 24. f3 {[%clk 0:01:05]}  g6 {[%clk 0:01:49]} 25. Be3 {[%clk 0:01:05]}  h5 {[%clk 0:01:43]} 26. Nf1 {[%clk 0:01:04]}  Bb4 {[%clk 0:01:29]} 27. Rxd8 {[%clk 0:00:57]}  Rxd8 {[%clk 0:01:29]} 28. Rd1 {[%clk 0:00:45]}  Rxd1 {[%clk 0:01:20]} 29. Qxd1 {[%clk 0:00:46]}  Bxc3 {[%clk 0:01:18]} 30. bxc3 {[%clk 0:00:47]}  Qxa2 {[%clk 0:01:16]} 31. Qd8+ {[%clk 0:00:46]}  Ne8 {[%clk 0:01:10]} 32. Qe7 {[%clk 0:00:37]}  f6 {[%clk 0:01:07]} 33. Bc5 {[%clk 0:00:29]}  Qf7 {[%clk 0:01:06]} 34. Qd8 {[%clk 0:00:29]}  Qc7 {[%clk 0:01:00]} 35. Qd2 {[%clk 0:00:21]}  Qd7 {[%clk 0:00:59]} 36. Qh6 {[%clk 0:00:20]}  Qf7 {[%clk 0:00:53]} 37. Qd2 {[%clk 0:00:19]}  Kg7 {[%clk 0:00:49]} 38. Ne3 {[%clk 0:00:19]}  Qd7 {[%clk 0:00:47]} 39. Nd5 {[%clk 0:00:17]}  Bxd5 {[%clk 0:00:46]} 40. exd5 {[%clk 0:00:18]}  Nc7 {[%clk 0:00:46]} 41. c4 {[%clk 0:00:18]}  b5 {[%clk 0:00:45]} 42. cxb5 {[%clk 0:00:12]}  Qxb5 {[%clk 0:00:41]} 43. Bf2 {[%clk 0:00:06]}  Nxd5 {[%clk 0:00:39]} 44. h4 {[%clk 0:00:05]}  a5 {[%clk 0:00:37]} 45. Qa2 {[%clk 0:00:02]}  a4 {[%clk 0:00:36]} 46. Qa3 {[%clk 0:00:01]}  Qc6 {[%clk 0:00:33]} 0-1


[Site "https://www.chess.com"]

[Event "Titled Tuesday Blitz November 15 Late 2022"]
[White "Ladan, Nicholas"]
[Black "Indjic, Aleksandar"]
[WhiteFideId "30918855"]
[BlackFideId "911925"]
[WhiteElo "2167"]
[BlackElo "2592"]
[Result "0-1"]
[Round "01"]
[TimeControl "180+1"]
[Date "2022.11.15"]
[WhiteClock "0:00:03"]
[BlackClock "0:00:24"]

1. d4 {[%clk 0:02:59]}  Nf6 {[%clk 0:02:58]} 2. c4 {[%clk 0:02:59]}  e6 {[%clk 0:02:58]} 3. g3 {[%clk 0:02:59]}  c5 {[%clk 0:02:58]} 4. d5 {[%clk 0:02:59]}  exd5 {[%clk 0:02:58]} 5. cxd5 {[%clk 0:03:00]}  d6 {[%clk 0:02:58]} 6. Nc3 {[%clk 0:03:00]}  g6 {[%clk 0:02:58]} 7. Nf3 {[%clk 0:03:00]}  Bg7 {[%clk 0:02:58]} 8. Bg2 {[%clk 0:02:59]}  O-O {[%clk 0:02:59]} 9. O-O {[%clk 0:03:00]}  Re8 {[%clk 0:02:59]} 10. Nd2 {[%clk 0:02:57]}  a6 {[%clk 0:02:57]} 11. a4 {[%clk 0:02:57]}  Nbd7 {[%clk 0:02:58]} 12. Ra2 {[%clk 0:02:49]}  Rb8 {[%clk 0:02:51]} 13. a5 {[%clk 0:02:44]}  b5 {[%clk 0:02:47]} 14. axb6 {[%clk 0:02:44]}  Nxb6 {[%clk 0:02:48]} 15. b3 {[%clk 0:02:39]}  h5 {[%clk 0:02:43]} 16. h4 {[%clk 0:02:14]}  Ng4 {[%clk 0:02:22]} 17. Bb2 {[%clk 0:02:14]}  Ne5 {[%clk 0:02:12]} 18. Qc2 {[%clk 0:02:09]}  Bf5 {[%clk 0:02:10]} 19. Nde4 {[%clk 0:01:58]}  Ra8 {[%clk 0:02:08]} 20. Rfa1 {[%clk 0:01:55]}  Bc8 {[%clk 0:01:55]} 21. Ng5 {[%clk 0:01:44]}  Rb8 {[%clk 0:01:54]} 22. Qd1 {[%clk 0:01:32]}  Nbd7 {[%clk 0:01:52]} 23. Nce4 {[%clk 0:01:27]}  Nf6 {[%clk 0:01:52]} 24. Rxa6 {[%clk 0:01:14]}  Bxa6 {[%clk 0:01:50]} 25. Rxa6 {[%clk 0:01:15]}  Nxe4 {[%clk 0:01:50]} 26. Nxe4 {[%clk 0:01:16]}  Rb6 {[%clk 0:01:48]} 27. Qa1 {[%clk 0:01:05]}  Rxa6 {[%clk 0:01:33]} 28. Qxa6 {[%clk 0:01:06]}  Ng4 {[%clk 0:01:33]} 29. Bxg7 {[%clk 0:00:54]}  Kxg7 {[%clk 0:01:34]} 30. Bf3 {[%clk 0:00:28]}  Ne5 {[%clk 0:01:30]} 31. Nxd6 {[%clk 0:00:23]}  Nxf3+ {[%clk 0:01:29]} 32. exf3 {[%clk 0:00:24]}  Re5 {[%clk 0:00:50]} 33. Ne4 {[%clk 0:00:17]}  Rxd5 {[%clk 0:00:46]} 34. Qa1+ {[%clk 0:00:17]}  f6 {[%clk 0:00:46]} 35. Kg2 {[%clk 0:00:18]}  Qe7 {[%clk 0:00:45]} 36. Qc3 {[%clk 0:00:16]}  Re5 {[%clk 0:00:46]} 37. Nd2 {[%clk 0:00:14]}  Rd5 {[%clk 0:00:42]} 38. Nc4 {[%clk 0:00:14]}  Qe2 {[%clk 0:00:38]} 39. Ne3 {[%clk 0:00:12]}  Rd2 {[%clk 0:00:38]} 40. Ng4 {[%clk 0:00:02]}  hxg4 {[%clk 0:00:37]} 41. Qxc5 {[%clk 0:00:03]}  gxf3+ {[%clk 0:00:34]} 42. Kh3 {[%clk 0:00:03]}  Qe6+ {[%clk 0:00:34]} 43. g4 {[%clk 0:00:03]}  Rd7 {[%clk 0:00:33]} 44. h5 {[%clk 0:00:03]}  gxh5 {[%clk 0:00:32]} 45. Qxh5 {[%clk 0:00:04]}  Qe5 {[%clk 0:00:29]} 46. b4 {[%clk 0:00:03]}  Rd8 {[%clk 0:00:28]} 47. b5 {[%clk 0:00:02]}  Rh8 {[%clk 0:00:28]} 48. b6 {[%clk 0:00:02]}  Rxh5+ {[%clk 0:00:27]} 49. gxh5 {[%clk 0:00:03]}  Qg5 {[%clk 0:00:25]} 50. b7 {[%clk 0:00:03]}  f5 {[%clk 0:00:24]} 51. h6+ {[%clk 0:00:02]}  Kh7 {[%clk 0:00:23]} 52. b8=Q {[%clk 0:00:03]}  Qg4+ {[%clk 0:00:24]} 53. Kh2 {[%clk 0:00:03]}  Qg2# {[%clk 0:00:24]} 0-1


[Site "https://www.chess.com"]

[Event "Titled Tuesday Blitz November 15 Late 2022"]
[White "Leschinsky, Gary"]
[Black "Moradiabadi, Elshan"]
[WhiteFideId "30951321"]
[BlackFideId "12501255"]
[WhiteElo "1855"]
[BlackElo "2550"]
[Result "1-0"]
[Round "01"]
[TimeControl "180+1"]
[Date "2022.11.16"]
[WhiteClock "0:00:10"]
[BlackClock "0:00:59"]

1. d4 {[%clk 0:03:00]}  c5 {[%clk 0:03:00]} 2. d5 {[%clk 0:02:59]}  Nf6 {[%clk 0:03:01]} 3. c4 {[%clk 0:02:59]}  e6 {[%clk 0:03:00]} 4. Nc3 {[%clk 0:03:00]}  exd5 {[%clk 0:03:01]} 5. cxd5 {[%clk 0:03:01]}  d6 {[%clk 0:03:01]} 6. e4 {[%clk 0:03:02]}  g6 {[%clk 0:03:02]} 7. Nge2 {[%clk 0:03:02]}  Bg7 {[%clk 0:03:02]} 8. Ng3 {[%clk 0:03:03]}  a6 {[%clk 0:03:01]} 9. a4 {[%clk 0:03:03]}  O-O {[%clk 0:03:01]} 10. Be2 {[%clk 0:03:03]}  Re8 {[%clk 0:03:00]} 11. O-O {[%clk 0:03:03]}  h5 {[%clk 0:02:59]} 12. f3 {[%clk 0:03:01]}  h4 {[%clk 0:02:58]} 13. Nh1 {[%clk 0:03:00]}  Nh5 {[%clk 0:02:53]} 14. Nf2 {[%clk 0:02:55]}  Bd4 {[%clk 0:02:51]} 15. Qd3 {[%clk 0:02:39]}  Qf6 {[%clk 0:02:45]} 16. Be3 {[%clk 0:02:37]}  Nf4 {[%clk 0:02:44]} 17. Qd2 {[%clk 0:02:28]}  Bxe3 {[%clk 0:02:39]} 18. Qxe3 {[%clk 0:02:26]}  Nd7 {[%clk 0:02:40]} 19. Ng4 {[%clk 0:02:03]}  Qd4 {[%clk 0:02:34]} 20. Rfd1 {[%clk 0:01:56]}  Qxe3+ {[%clk 0:02:33]} 21. Nxe3 {[%clk 0:01:57]}  Ne5 {[%clk 0:02:31]} 22. Kf2 {[%clk 0:01:57]}  f5 {[%clk 0:02:28]} 23. g3 {[%clk 0:01:54]}  hxg3+ {[%clk 0:02:28]} 24. hxg3 {[%clk 0:01:55]}  Nh3+ {[%clk 0:02:28]} 25. Kg2 {[%clk 0:01:54]}  f4 {[%clk 0:02:29]} 26. gxf4 {[%clk 0:01:52]}  Nxf4+ {[%clk 0:02:27]} 27. Kf2 {[%clk 0:01:53]}  Rf8 {[%clk 0:02:27]} 28. Rh1 {[%clk 0:01:45]}  Nxe2 {[%clk 0:02:12]} 29. Kxe2 {[%clk 0:01:44]}  Nxf3 {[%clk 0:02:13]} 30. Raf1 {[%clk 0:01:35]}  Nd4+ {[%clk 0:02:10]} 31. Kd3 {[%clk 0:01:34]}  Rxf1 {[%clk 0:02:11]} 32. Rxf1 {[%clk 0:01:33]}  Bd7 {[%clk 0:02:11]} 33. Nc4 {[%clk 0:01:31]}  b5 {[%clk 0:02:03]} 34. Nxd6 {[%clk 0:01:07]}  b4 {[%clk 0:02:02]} 35. Ne2 {[%clk 0:01:06]}  Nxe2 {[%clk 0:01:58]} 36. Kxe2 {[%clk 0:01:07]}  Bxa4 {[%clk 0:01:58]} 37. Ke3 {[%clk 0:00:58]}  Bb3 {[%clk 0:01:48]} 38. Rf6 {[%clk 0:00:56]}  Kg7 {[%clk 0:01:49]} 39. Rf7+ {[%clk 0:00:56]}  Kh6 {[%clk 0:01:49]} 40. Rc7 {[%clk 0:00:55]}  a5 {[%clk 0:01:38]} 41. Rxc5 {[%clk 0:00:51]}  a4 {[%clk 0:01:39]} 42. Nb5 {[%clk 0:00:14]}  a3 {[%clk 0:01:35]} 43. bxa3 {[%clk 0:00:15]}  bxa3 {[%clk 0:01:35]} 44. Rc1 {[%clk 0:00:15]}  a2 {[%clk 0:01:24]} 45. Ra1 {[%clk 0:00:15]}  g5 {[%clk 0:01:23]} 46. d6 {[%clk 0:00:15]}  Be6 {[%clk 0:01:20]} 47. Nc3 {[%clk 0:00:15]}  Ra3 {[%clk 0:01:17]} 48. Kd4 {[%clk 0:00:15]}  Ra7 {[%clk 0:01:10]} 49. Ke5 {[%clk 0:00:15]}  Bf7 {[%clk 0:01:07]} 50. Kf6 {[%clk 0:00:15]}  Bh5 {[%clk 0:01:04]} 51. e5 {[%clk 0:00:14]}  g4 {[%clk 0:01:02]} 52. Rxa2 {[%clk 0:00:13]}  Rxa2 {[%clk 0:00:59]} 53. Nxa2 {[%clk 0:00:14]}  g3 {[%clk 0:00:59]} 54. d7 {[%clk 0:00:10]} 1-0


[Site "https://www.chess.com"]